Cogmind - Beta 15 @@@ ROGUE MODE // 2025.08.14 @ 05:24:57 Player: shapeshifter Result: Destroyed by YM-X72(R) with Subdweller Laser Performance ------------- Evolutions (0) 0 Regions Visited (2) 400 Robots Destroyed (23) 115 Value Destroyed (623) 623 Prototype IDs (11) 220 Alien Tech Used (0) 0 Bonus (0) 0 TOTAL SCORE: 1358 Bonus ------- None Cogmind --------- Core Integrity 0/250 Matter 261/300 Energy 200/200 System Corruption 0% Temperature Cool (6) Movement Rolling (210) Ox10 Location -10/Subcaves Parts ------- > --- POWER (1) -------- Subdweller Power Source > --- PROPULSION (2) --- Subdweller Monowheel Subdweller Monowheel > --- UTILITY (2) ------ Humpback > --- WEAPON (2) ------- Subdweller Machine Gun Barrage Gun > --- INVENTORY (35) --- Subdweller Power Source Arachnoskeleton Disposable Heat Sink Large Storage Unit Structural Scanner Subdweller Optics Subdweller Optics Subdweller Optics Improved Terrain Scanner Scrap Shield Subdweller Beam Cannon Subdweller Beam Cannon Assault Rifle Battle Rifle Maul Peak State ------------ > --- POWER ------------ Subdweller Power Source > --- PROPULSION ------- Subdweller Monowheel Subdweller Monowheel > --- UTILITY ---------- Humpback > --- WEAPON ----------- Subdweller Machine Gun Barrage Gun > --- INVENTORY -------- Subdweller Power Source Arachnoskeleton Disposable Heat Sink Large Storage Unit Structural Scanner Subdweller Optics Subdweller Optics Subdweller Optics Improved Terrain Scanner Scrap Shield Subdweller Beam Cannon Subdweller Beam Cannon Assault Rifle Battle Rifle Maul [Rating: 17] Favorites ----------- Power Improved Ion Engine Engine Improved Ion Engine Propulsion Compact Wheel Treads Light Treads Wheel Compact Wheel Utility Structural Scanner Device Structural Scanner Storage Small Storage Unit Protection Light Armor Plating Weapon Assault Rifle Ballistic Gun Assault Rifle Impact Weapon Maul Build | -11 -10 -10 ------- Run | Yrd Mat Sub Slots Evolved . | . . . Power . | . . . Propulsion . | . . . Utility . | . . . Weapon . | . . . Parts Attached 26 | 7 10 9 Power 6 | 1 3 2 Engine 6 | 1 3 2 Core . | . . . Reactor . | . . . Propulsion 6 | 2 2 2 Treads 2 | 2 . . Leg . | . . . Wheel 4 | . 2 2 Hover . | . . . Flight . | . . . Utility 6 | 2 2 2 Device 2 | 1 1 . Storage 3 | 1 1 1 Processor . | . . . Hackware . | . . . Protection 1 | . . 1 Artifact . | . . . Weapon 8 | 2 3 3 Energy Gun . | . . . Energy Cannon . | . . . Ballistic Gun 7 | 2 3 2 Ballistic Cannon . | . . . Launcher . | . . . Special Weapon . | . . . Impact Weapon 1 | . . 1 Slashing Weapon . | . . . Piercing Weapon . | . . . Special Melee Weapon . | . . . Unidentified Prototypes . | . . . Parts Lost 5 | . 3 2 Power 1 | . 1 . Propulsion 1 | . 1 . Utility . | . . . Weapon 3 | . 1 2 Highest Loss Streak 2 | . 1 2 To Critical Strikes . | . . . Average Backups 9 | 3 7 12 Power . | . . . Propulsion 1 | 1 1 . Utility 4 | . 2 7 Weapon 3 | . 2 4 Tool/Special . | . . . Unused Backups 19 | . 2 17 Power 1 | . . 1 Propulsion 2 | . 1 1 Utility 10 | . . 10 Weapon 6 | . 1 5 Tool/Special . | . . . Average Slot Usage (%) 97 | . 99 95 Engine 13 | . 13 14 Treads 8 | . 15 . Wheel 19 | . 12 28 Device 11 | . 14 7 Storage 14 | . 14 14 Ballistic Gun 27 | . 27 26 Peak Build Rating 17 | 7 9 17 Average Rating 9 | 5 8 12 On Entrance 5 | . 7 9 Naked Turns . | . . . Heaviest Build 209 | 13 32 209 Greatest Support 40 | 40 40 36 Greatest Overweight (x) 10 | . . 10 Average Overweight (x) 1 | . . 2 Largest Inventory Capacity 35 | 8 15 35 Average Capacity 14 | 7 9 21 Most Carried 20 | 5 9 20 Average Carried 10 | 3 7 15 Final Capacity 35 | 8 15 35 Final Carried 18 | 5 9 18 Class Distribution -------------------- 86% | Mutant 13% | Hauler-Mutant Dominant Class ---------------- Mutant | -10/Materials Mutant | -10/Subcaves Resources | -11 -10 -10 ----------- Run | Yrd Mat Sub Matter Collected 935 | 275 301 359 Remotely . | . . . Salvage Created 944 | 122 481 341 Parts 62 | 16 24 22 Haulers Intercepted 1 | . 1 . Recyclers Shooed 1 | 1 . . Parts Field Recycled . | . . . Retrieved Matter . | . . . Parts Self-Destructed 8 | . . 8 Prevented . | . . . Kills | -11 -10 -10 ------- Run | Yrd Mat Sub Combat Hostiles Destroyed 15 | . 9 6 Guns 15 | . 9 6 Classes Destroyed 8 | 2 3 3 Worker 1 | 1 . . Tunneler 4 | 4 . . Hauler 1 | . 1 . Watcher 2 | . 2 . Swarmer 1 | . . 1 Grunt 9 | . 9 . Sentry 1 | . . 1 Subdweller 4 | . . 4 Best Kill Streak 3 | 3 2 2 Combat Bots Only 2 | . 2 2 Max Kills in Single Turn 2 | 1 1 2 Gunslinging 1 | . . 1 Exploded . | . . . Melee . | . . . Uniques/NPCs Destroyed . | . . . Combat | -11 -10 -10 -------- Run | Yrd Mat Sub Hostile Shots Fired 102 | . 58 44 Missed 20 | . 9 11 Hits 82 | . 49 33 Projectile 82 | . 49 33 Critical Strikes 4 | . 3 1 Damage Taken 1374 | . 669 705 Core 267 | . 69 198 Absorbed by Shields . | . . . Core Remaining (%) 100 | 100 . . Volleys Fired 113 | 17 61 35 Largest 2 | 2 2 2 Hottest 58 | 40 40 58 Shots Fired 224 | 34 120 70 Gun 224 | 34 120 70 Cannon . | . . . Launcher . | . . . Special . | . . . Kinetic 224 | 34 120 70 Thermal . | . . . Explosive . | . . . Electromagnetic . | . . . Robot Hit Streak 23 | 11 8 23 Robot Miss Streak 3 | 1 3 3 Penetration Max . | . . . Secondary Targets 3 | . 1 2 Max Gunslinging Chain 1 | . 1 1 Shots Hit Robots 145 | 24 68 53 Core Hits 57 | 9 28 20 Critical Kills 1 | . . 1 Critical Parts Destroyed . | . . . Critical Strikes 1 | . . 1 Destroy 1 | . . 1 Melee Attacks 3 | . . 3 Impact 3 | . . 3 Slashing . | . . . Piercing . | . . . Sneak Attacks . | . . . Combat Hostiles . | . . . Follow-up Attacks . | . . . Damage Inflicted 1636 | 212 707 717 Guns 1636 | 212 707 717 Cannons . | . . . Explosions . | . . . Melee . | . . . Ramming . | . . . Kinetic 1636 | 212 707 717 Thermal . | . . . Explosive . | . . . Electromagnetic . | . . . Impact . | . . . Slashing . | . . . Piercing . | . . . Highest Corruption . | . . . Average Corruption . | . . . Corruption Purged . | . . . Corruption Blocked . | . . . Overload Shots . | . . . Overflow Damage . | . . . Projectiles . | . . . Explosions . | . . . Melee . | . . . Knockbacks . | . . . Impact . | . . . Kinetic . | . . . Secondary . | . . . Self-Inflicted Damage . | . . . Shots . | . . . Rammed . | . . . Targets Rammed . | . . . Kicked . | . . . Crushed . | . . . Highest Temperature 61 | . 61 . Average Temperature 17 | . 17 . Received Heat Transfer 606 | . 426 180 Siege Activations . | . . . Martial Activations . | . . . Shielding Activations . | . . . Robots Disrupted . | . . . Combat Hostiles . | . . . Robots Corrupted . | . . . Combat Hostiles . | . . . Parts Fried . | . . . Impact Corruptions . | . . . Robots Melted . | . . . Combat Hostiles . | . . . Parts Melted 1 | . . 1 Heat Transferred . | . . . Parts Sabotaged . | . . . Parts Stolen . | . . . Parts Stripped . | . . . Power Chain Reactions . | . . . Alert | -11 -10 -10 ------- Run | Yrd Mat Sub Maximum Alert Level . | . . . Low Security (%) 100 | 100 100 . Level 1 . | . . . Level 2 . | . . . Level 3 . | . . . Level 4 . | . . . Level 5 . | . . . High Security . | . . . Max Security . | . . . Peak Influence 46 | 5 46 . Initial . | . . . Average 9 | . 11 . Influence Increases 346 | 25 281 40 Destroy 0b10 Robot/C 220 | . 180 40 Destroy 0b10 Robot/NC 40 | 25 15 . Destroy Leader 56 | . 56 . Successful Hack 30 | . 30 . Influence Decreases 346 | 25 281 40 Time Decay 326 | 25 261 40 Lost Part 20 | . 20 . Squads Dispatched 3 | . 3 . Investigation 1 | . 1 . Extermination . | . . . Reinforcement 2 | . 2 . Assault . | . . . Garrison . | . . . Intercept . | . . . Searches Triggered . | . . . Construction Impeded . | . . . Haulers Reinforced . | . . . Active Scanning Responses . | . . . Cargo Convoy Interrupts . | . . . Stealth | -11 -10 -10 --------- Run | Yrd Mat Sub Distress Signals 1 | . 1 . Communications Jammed . | . . . Distress Signals . | . . . Times Spotted 31 | . 23 8 Peak Tracking Total 3 | . 3 2 Tactical Retreats . | . . . Traps | -11 -10 -10 ------- Run | Yrd Mat Sub Traps Triggered . | . . . Indirectly . | . . . Trap Hack Attempts . | . . . Triggered . | . . . Disarmed . | . . . Reprogrammed . | . . . Reused . | . . . Traps Extracted . | . . . Installed . | . . . Triggered . | . . . Machines | -11 -10 -10 ---------- Run | Yrd Mat Sub Machines Disabled 1 | . . 1 Max in Single Turn 1 | . . 1 Machines Repaired . | . . . Machines Dismantled . | . . . Machines Sabotaged . | . . . Overloaded Fab Kills . | . . . Hacking | -11 -10 -10 --------- Run | Yrd Mat Sub Machines Accessed 6 | . 5 1 Terminals 5 | . 5 . Fabricators . | . . . Repair Stations . | . . . Recycling Units . | . . . Scanalyzers . | . . . Garrison Access . | . . . Total Hacks 24 | . 15 9 Successful 17 | . 8 9 Failed 7 | . 7 . Catastrophic 1 | . 1 . Database Lockouts . | . . . Manual 13 | . 13 . Terminals 15 | . 15 . Fabricators . | . . . Repair Stations . | . . . Recycling Units . | . . . Scanalyzers . | . . . Garrison Access . | . . . Terminal Hacks 15 | . 6 9 Record 8 | . . 8 Alert Level 1 | . 1 . Registered Components 2 | . 2 . Registered Prototypes 1 | . 1 . Zone Layout 2 | . 2 . Proto ID Catalog 1 | . . 1 Fabricator Hacks . | . . . Repair Station Hacks . | . . . Recycling Unit Hacks . | . . . Scanalyzer . | . . . Garrison Access Hacks . | . . . Unauthorized Hacks 2 | . 2 . Terminals 2 | . 2 . Botnet 2 | . 2 . Fabricators . | . . . Repair Stations . | . . . Recycling Units . | . . . Scanalyzers . | . . . Garrison Access . | . . . Data Cores Recovered . | . . . Used . | . . . Hacking Detections 3 | . 3 . Full Trace Events 1 | . 1 . Feedback Events . | . . . Feedback Blocked . | . . . Robot Schematics Acquired . | . . . Robots Built . | . . . Authchips . | . . . Time . | . . . Total Robot Build Rating . | . . . Part Schematics Acquired . | . . . Parts Built . | . . . Authchips . | . . . Time . | . . . Total Part Build Rating . | . . . Parts Repaired . | . . . Time . | . . . Parts Recycled . | . . . Recycled Matter . | . . . Retrieved Matter . | . . . Retrieved Components . | . . . Parts Scanalyzed . | . . . Part Schematics Acquired . | . . . Parts Damaged . | . . . Bothacking | -11 -10 -10 ------------ Run | Yrd Mat Sub Used RIF Installer . | . . . Robots Hacked . | . . . Non-combat . | . . . Combat . | . . . Robot Hacks Applied . | . . . Relay Couplers Released . | . . . Fabnet Peak Effective % . | . . . Robots Rewired . | . . . Allies Hacked . | . . . Hacks Repelled . | . . . Allies | -11 -10 -10 -------- Run | Yrd Mat Sub Total Allies . | . . . Largest Group . | . . . Highest-Rated Group . | . . . Highest-Rated Ally . | . . . Total Orders . | . . . Ally Attacks . | . . . Total Damage . | . . . Kills . | . . . Allies Corrupted . | . . . Allies Melted . | . . . Intel | -11 -10 -10 ------- Run | Yrd Mat Sub Active Infowar (turns) 1489 | 87 945 457 Structural 1033 | . 576 457 Seismic 456 | 87 369 . Robot Analysis Total . | . . . Derelict Logs Recovered 1 | . . 1 Drone Launches . | . . . Drone Recoveries . | . . . Exploration | -11 -10 -10 ------------- Run | Yrd Mat Sub Turns Passed 1976 | 213 945 818 Spaces Moved 1090 | 100 499 491 Core 15 | 15 . . Treads 301 | 85 216 . Legs . | . . . Wheels 774 | . 283 491 Hover . | . . . Flight . | . . . Fastest Speed 50 | 50 100 100 Average Speed 130 | 143 125 133 Slowest Speed 210 | 160 160 210 Overloaded Moves . | . . . Propulsion Burnouts . | . . . Robots Hopped . | . . . Potential Cave-ins . | . . . Cave-ins Triggered . | . . . Exploration Rate (%) 39 | 7 81 29 Regions Visited 2 Branch Regions 1 Pre-discovered Areas 1 | . . 1 Known Exits Taken . | . . . Unknown Exits Taken 2 | 1 1 . Scrap Searched 3 | . . 3 Spaces Dug . | . . . Terrain Destroyed . | . . . Melee . | . . . Projectile . | . . . AOE . | . . . Terrain Rammed . | . . . Walls Destroyed . | . . . Machines Disabled . | . . . Actions | -11 -10 -10 --------- Run | Yrd Mat Sub Total 1434 | 142 709 583 Wait 131 | 7 117 7 Move 1088 | 99 498 491 Hop . | . . . Pick Up 49 | 12 14 23 Fast Attach 2 | . . 2 Attach 15 | 7 5 3 Detach . | . . . Swap 13 | . 5 8 Drop 20 | . 9 11 Fire 113 | 17 61 35 Melee 3 | . . 3 Ram . | . . . Kick . | . . . Crush . | . . . Escape Stasis . | . . . Rewire . | . . . Trap . | . . . Miscellaneous . | . . . Route ------- -11/Scrapyard -10/Materials (discovered 3 exits: [*Mat] / [*Min] / *Sub) -10/Subcaves (discovered 1 exit: [*Mat]) History --------- Turn | Location | Event 10 | -11/Scrapyard | Discovered new exit (range 16) 214 | -11/Scrapyard | Entered Materials 310 | -10/Materials | Build established: Mutant 494 | -10/Materials | Discovered new exit (range 14) 917 | -10/Materials | Discovered new exit (range 13) 1122 | -10/Materials | Discovered new exit (range 9) 1159 | -10/Materials | Entered Subcaves 1160 | -10/Subcaves | Approached by a straggling Scientist 1199 | -10/Subcaves | Discovered new exit (range 10) 1215 | -10/Subcaves | Core integrity fell below 50% 1246 | -10/Subcaves | Shifting Twisted Machinery released Shrapnel Trap 1255 | -10/Subcaves | Shifting Twisted Machinery released Mak. System Shield 1290 | -10/Subcaves | A swath of the cavern ceiling suddenly collapsed 1439 | -10/Subcaves | Shifting Twisted Machinery released Mak. Power Source 1461 | -10/Subcaves | Learned location of Zion (-6) 1534 | -10/Subcaves | Visited 4L-MR0's lab 1551 | -10/Subcaves | Found Arachnoskeleton 1969 | -10/Subcaves | Core integrity fell below 20% 1977 | -10/Subcaves | Destroyed by YM-X72(R) with Subdweller Laser Last Messages --------------- 01755_ Subatomizers dissect the Sub. Laser. 01757_ Acquired Sub. Optics. 01760_ Acquired Sub. Beam Cannon. 01763_ Acquired Structural Scanner. 01765_ Subatomizers dissect the Sub. Laser. 01768_ Acquired Imp. Terrain Scanner. GR-Y7F(c): "I think it's somewhere north of here" 01771_ Acquired Sub. Optics. 01779_ Acquired Disposable Heat Sink. 01782_ Acquired 18 matter. GR-Y7F(c): "I think it's somewhere north of here" 01828_ Acquired Barrage Gun. 01842_ Acquired 11 matter. GR-Y7F(c): "I think it's somewhere north of here" 01965_ Assault Rifle destroyed. GR-Y7F(c): "I think it's somewhere north of here" Map ----- +----------------------------------------------------+ | ?????????????????????????????????????????????????? | | ?????????????????????????????????????????????????? | | ?????????????????????????????????????????????????? | | ?????????????????????????????????????????????????? | | ?????????????????????????????????????????????????? | | ?????????????????????????????????????????????????? | | ?????????????????????????????????????????????????? | | ?????????????????????????????????????????????????? | | ?????????????????????????????????????????????????? | | ?????????????????????????????????????????????????? | | ?????????????????????????????????????????????????? | | ?????????????????????? ?????????????????????????? | | ?????????????????????? ?????????????????????????? | | ?????????????????????? #????????????????????????? | | ?????????????????????? ##??????????????????????? | | ??????????????????????? ??????????????????????? | | ??????????????????????? ?????????????????????? | | ??????????????????????? "??????????????????????? | | ???????????????????????# "??????????????????????? | | ??????????????????????## ""???????"??????????????? | | ???????????????????????""""??????? ""????????????? | | ???????????????????????#"R#??????? """???????????? | | ??????????????????????##R #???????# "#???????????? | | ??????????????????????# #???????#""#???????????? | | ??????????????????????## #########""##??????????? | | ??????????????????????#% @ # ""#??????????? | | ??????????????????????# "#??????????? | | ??????????????????????# c # ##?????????? | | ??????????????????????####### ### #?????????? | | ????????????????????????????###?## #?????????? | | ?????????????????????????????##### #?????????? | | ?????????????????????????????# ##?????????? | | ?????????????????????????????# #??????????? | | ?????????????????????????????# #??????????? | | ?????????????????????????????# #??????????? | | ?????????????????????????????# ##??????????? | | ????????????????????????????## ##???????????? | | ???????????????????????????## ##????????????? | | ??????????????????????###### ##?????????????? | | ??????????????????##### # #??????????????? | | ?????????????????## #??????????????? | | ??????????????? % #??????????????? | | ??????????????? ## # ####???????????? | | ????????????????? ?#???### #??????????? | | ?????????????? ???????### #### #?????????? | | ?????????????# ??#?## #???# ##?????????? | | ?????????????# # # #????#####??????????? | | ??????????????# ####??##????????????? | | ???????????????# ### #????????????? | | ???????????????## # ## #????????????? | +----------------------------------------------------+ Best States ------------- Heat Dissipation 25 Energy Generation 15 Energy Capacity 265 Matter Stores 300 Matter Capacity 300 Sight Range 16 Terrain Scan Density 10 Armor Coverage 150 Evasion (%) 50 Recoil Reduction 2 Item Schematics ----------------- None Robot Schematics ------------------ None Fabricated ------------ Nothing Repaired ---------- Nothing Alien Tech Used ----------------- None Achievements -------------- None Challenges ------------ None Game ------ Seed TeslaBraceCleaver Manual? 0 Play Time 00:15:16 Cumulative 141.9 hours Start 2025.08.14 @ 05:10:33 End 2025.08.14 @ 05:24:57 Sessions 1 Manual Loads 0 Difficulty Rogue Special Mode None Game No. 242 Rogue 242 Adventurer 0 Explorer 0 Win Type - Total 2 Types 1/0/1/0/0/0/0/0/0/0 Lore% 74 Gallery% 70 Achievement% 51 Wizard Run 0 Options --------- Layout 1 ASCII 0 Keyboard 0 Movement Mouse Keybinds 0 Fullscreen 1 Font 32/SmallcapsGlow Map View 50x35 Zoom Use 0% Tactical HUD 1 Map Filters NONE Filters NONE Steam 1 RUN: 7468a606-f405-4e3b-b22b-69d4c817aefc